[Event "*** SCC Grand Prix: Titled Tuesday Blitz"]
[Site "Chess.com"]
[Date "2020.07.07"]
[Round "6"]
[White "ViktoriyaTarasova"]
[Black "Lucas_Tomiello"]
[Result "0-1"]
[WhiteElo "2241"]
[BlackElo "2416"]
[TimeControl "180+1"]
[EndTime "11:05:53 PDT"]
[Termination "Lucas_Tomiello won by resignation"]

1. d4 {[%clk 0:03:00.9]} 1... Nf6 {[%clk 0:03:00.2]} 2. c4 {[%clk 0:03:00.7]}
2... g6 {[%clk 0:03:00.6]} 3. Nc3 {[%clk 0:03:00.4]} 3... d5 {[%clk 0:03:01.1]}
4. cxd5 {[%clk 0:02:58.2]} 4... Nxd5 {[%clk 0:03:02]} 5. g3 {[%clk 0:02:58.8]}
5... Bg7 {[%clk 0:03:01.4]} 6. Bg2 {[%clk 0:02:59.1]} 6... Nxc3 {[%clk 0:02:58]}
7. bxc3 {[%clk 0:02:58.9]} 7... O-O {[%clk 0:02:58.1]} 8. e3 {[%clk 0:02:56.1]}
8... c5 {[%clk 0:02:54.9]} 9. Ne2 {[%clk 0:02:56.5]} 9... Qa5 {[%clk 0:02:54.4]}
10. O-O {[%clk 0:02:55.9]} 10... Nc6 {[%clk 0:02:53]} 11. d5 {[%clk 0:02:54.5]}
11... Ne5 {[%clk 0:02:50.7]} 12. Qb3 {[%clk 0:02:45.9]} 12... Qa6 {[%clk
0:02:41.9]} 13. Nf4 {[%clk 0:02:42.1]} 13... Rb8 {[%clk 0:02:37.5]} 14. Rd1
{[%clk 0:02:37]} 14... Bd7 {[%clk 0:02:35.4]} 15. a4 {[%clk 0:01:58.1]} 15...
Qc4 {[%clk 0:02:35.4]} 16. Qxc4 {[%clk 0:01:55.1]} 16... Nxc4 {[%clk 0:02:36.3]}
17. Bf1 {[%clk 0:01:51.7]} 17... Nd6 {[%clk 0:02:36.6]} 18. Ra3 {[%clk
0:01:40.2]} 18... a6 {[%clk 0:02:34.5]} 19. c4 {[%clk 0:01:36.4]} 19... b5
{[%clk 0:02:15.9]} 20. axb5 {[%clk 0:01:35.7]} 20... axb5 {[%clk 0:02:16.8]} 21.
Ra7 {[%clk 0:01:36.1]} 21... Rfd8 {[%clk 0:02:09]} 22. cxb5 {[%clk 0:01:32.8]}
22... c4 {[%clk 0:02:09.1]} 23. Rc7 {[%clk 0:01:01.6]} 23... Bxb5 {[%clk
0:01:32.8]} 24. Bd2 {[%clk 0:00:48.3]} 24... Rdc8 {[%clk 0:01:22.6]} 25. Rxc8+
{[%clk 0:00:46.3]} 25... Rxc8 {[%clk 0:01:22.4]} 26. Bb4 {[%clk 0:00:46.9]}
26... c3 {[%clk 0:01:18.5]} 27. Bxd6 {[%clk 0:00:43.8]} 27... Bxf1 {[%clk
0:01:16.2]} 28. Kxf1 {[%clk 0:00:43.9]} 28... exd6 {[%clk 0:01:15.6]} 29. Nd3
{[%clk 0:00:36.9]} 29... Rb8 {[%clk 0:01:12.5]} 30. Ke2 {[%clk 0:00:30.6]} 30...
Kf8 {[%clk 0:01:12.2]} 31. Rc1 {[%clk 0:00:29.6]} 31... Ke7 {[%clk 0:01:11.2]}
32. Kd1 {[%clk 0:00:30.1]} 32... Ra8 {[%clk 0:01:08.7]} 33. Rc2 {[%clk
0:00:27.6]} 33... Ra1+ {[%clk 0:01:07.8]} 34. Ke2 {[%clk 0:00:28.2]} 34... g5
{[%clk 0:00:59.9]} 35. e4 {[%clk 0:00:27.1]} 35... Bd4 {[%clk 0:00:57.4]} 36. f4
{[%clk 0:00:20.6]} 36... g4 {[%clk 0:00:57.1]} 37. e5 {[%clk 0:00:20.1]} 37...
Rh1 {[%clk 0:00:56]} 38. exd6+ {[%clk 0:00:19.2]} 38... Kxd6 {[%clk 0:00:56.9]}
39. Ne5 {[%clk 0:00:19.7]} 39... Rxh2+ {[%clk 0:00:56.3]} 40. Kd3 {[%clk
0:00:19.9]} 40... Rxc2 {[%clk 0:00:54.3]} 41. Nxf7+ {[%clk 0:00:18.8]} 41... Ke7
{[%clk 0:00:54]} 42. d6+ {[%clk 0:00:18.5]} 42... Kxf7 {[%clk 0:00:53.8]} 43.
Kxc2 {[%clk 0:00:18.3]} 43... Ke6 {[%clk 0:00:53.3]} 0-1

[Event "*** SCC Grand Prix: Titled Tuesday Blitz"]
[Site "Chess.com"]
[Date "2020.07.07"]
[Round "6"]
[White "gross-aleks"]
[Black "Chesswizard_2007"]
[Result "1-0"]
[WhiteElo "2611"]
[BlackElo "2454"]
[TimeControl "180+1"]
[EndTime "11:05:57 PDT"]
[Termination "gross-aleks won on time"]

1. c4 {[%clk 0:03:00.9]} 1... Nf6 {[%clk 0:02:58.3]} 2. Nf3 {[%clk 0:02:59.9]}
2... e6 {[%clk 0:02:58.7]} 3. e3 {[%clk 0:02:59.7]} 3... d5 {[%clk 0:02:56.9]}
4. b3 {[%clk 0:03:00]} 4... g6 {[%clk 0:02:50.9]} 5. Bb2 {[%clk 0:02:59.6]} 5...
Bg7 {[%clk 0:02:50.7]} 6. Be2 {[%clk 0:02:59.6]} 6... O-O {[%clk 0:02:50.6]} 7.
O-O {[%clk 0:02:59.5]} 7... b6 {[%clk 0:02:50.3]} 8. cxd5 {[%clk 0:02:58.1]}
8... Nxd5 {[%clk 0:02:45.2]} 9. Bxg7 {[%clk 0:02:57.2]} 9... Kxg7 {[%clk
0:02:46.1]} 10. d4 {[%clk 0:02:57.3]} 10... Ba6 {[%clk 0:02:44.9]} 11. Bxa6
{[%clk 0:02:51.4]} 11... Nxa6 {[%clk 0:02:45.8]} 12. Qe2 {[%clk 0:02:52]} 12...
Nab4 {[%clk 0:02:38.9]} 13. a3 {[%clk 0:02:50.1]} 13... Nc6 {[%clk 0:02:38.3]}
14. Rc1 {[%clk 0:02:47.4]} 14... Nce7 {[%clk 0:02:35.3]} 15. Nbd2 {[%clk
0:02:46.5]} 15... c6 {[%clk 0:02:19.5]} 16. Ne5 {[%clk 0:02:39]} 16... Rc8
{[%clk 0:02:18.1]} 17. b4 {[%clk 0:02:37.3]} 17... f6 {[%clk 0:02:17.8]} 18. Nd3
{[%clk 0:02:35]} 18... Qd7 {[%clk 0:02:11.8]} 19. Rc2 {[%clk 0:02:17.4]} 19...
Rc7 {[%clk 0:02:11]} 20. Rac1 {[%clk 0:02:16.5]} 20... Rfc8 {[%clk 0:02:11]} 21.
e4 {[%clk 0:02:15.5]} 21... Nxb4 {[%clk 0:01:45.5]} 22. axb4 {[%clk 0:02:03.8]}
22... Qxd4 {[%clk 0:01:46.4]} 23. Nf3 {[%clk 0:02:03.6]} 23... Qd8 {[%clk
0:01:44.2]} 24. Nf4 {[%clk 0:02:03]} 24... Kf7 {[%clk 0:01:38.1]} 25. Qc4 {[%clk
0:02:02.3]} 25... Qd6 {[%clk 0:01:26.1]} 26. e5 {[%clk 0:01:54.1]} 26... fxe5
{[%clk 0:01:17.1]} 27. Nxe6 {[%clk 0:01:53.5]} 27... Nd5 {[%clk 0:01:10.8]} 28.
Nxc7 {[%clk 0:01:51.7]} 28... Rxc7 {[%clk 0:01:10.8]} 29. b5 {[%clk 0:01:47.4]}
29... cxb5 {[%clk 0:01:09.3]} 30. Qxb5 {[%clk 0:01:32.6]} 30... Rxc2 {[%clk
0:01:03.6]} 31. Rxc2 {[%clk 0:01:33.5]} 31... Ne3 {[%clk 0:01:04.5]} 32. Qb3+
{[%clk 0:01:29.3]} 32... Nd5 {[%clk 0:01:02.2]} 33. Rd2 {[%clk 0:01:25.1]} 33...
Ke6 {[%clk 0:01:02.4]} 34. Ng5+ {[%clk 0:01:24.5]} 34... Kf5 {[%clk 0:01:01.6]}
35. Rxd5 {[%clk 0:01:18.6]} 35... Qxd5 {[%clk 0:00:03.9]} 36. Qxd5 {[%clk
0:01:13.6]} 36... Kxg5 {[%clk 0:00:04]} 37. Qxe5+ {[%clk 0:01:12.4]} 37... Kh6
{[%clk 0:00:04.9]} 38. g4 {[%clk 0:01:12.9]} 38... a5 {[%clk 0:00:03.8]} 39. h4
{[%clk 0:01:12.3]} 39... a4 {[%clk 0:00:03.2]} 40. f3 {[%clk 0:01:11.3]} 40...
a3 {[%clk 0:00:02.7]} 41. Qf6 {[%clk 0:01:09.6]} 1-0

[Event "*** SCC Grand Prix: Titled Tuesday Blitz"]
[Site "Chess.com"]
[Date "2020.07.07"]
[Round "6"]
[White "Ural_bogatyr"]
[Black "DivyaDeshmukh23"]
[Result "1-0"]
[WhiteElo "2354"]
[BlackElo "2490"]
[TimeControl "180+1"]
[EndTime "11:06:00 PDT"]
[Termination "Ural_bogatyr won on time"]

1. e4 {[%clk 0:03:00.9]} 1... c5 {[%clk 0:02:59.8]} 2. Nf3 {[%clk 0:03:00.2]}
2... d6 {[%clk 0:02:58.8]} 3. d4 {[%clk 0:02:59.7]} 3... cxd4 {[%clk 0:02:59.7]}
4. Qxd4 {[%clk 0:02:59.9]} 4... Nf6 {[%clk 0:03:00.6]} 5. Nc3 {[%clk 0:02:59]}
5... a6 {[%clk 0:02:49.9]} 6. Be3 {[%clk 0:02:58.1]} 6... Nc6 {[%clk 0:02:49.4]}
7. Qd2 {[%clk 0:02:57.7]} 7... e5 {[%clk 0:02:33.2]} 8. O-O-O {[%clk 0:02:56.1]}
8... Be7 {[%clk 0:02:29]} 9. Bg5 {[%clk 0:02:52.8]} 9... Be6 {[%clk 0:01:48.5]}
10. Kb1 {[%clk 0:02:38.6]} 10... Rc8 {[%clk 0:01:37]} 11. h3 {[%clk 0:02:29.8]}
11... b5 {[%clk 0:01:30.3]} 12. Bxf6 {[%clk 0:02:26.8]} 12... gxf6 {[%clk
0:01:26.9]} 13. g4 {[%clk 0:02:19.7]} 13... h5 {[%clk 0:01:21.1]} 14. Rg1 {[%clk
0:01:55.9]} 14... Qd7 {[%clk 0:01:13.2]} 15. g5 {[%clk 0:01:34.4]} 15... fxg5
{[%clk 0:00:17.3]} 16. Nxg5 {[%clk 0:01:35.3]} 16... Nd4 {[%clk 0:00:14.3]} 17.
Qe3 {[%clk 0:00:50.9]} 17... b4 {[%clk 0:00:10.8]} 18. Nxe6 {[%clk 0:00:37.5]}
18... bxc3 {[%clk 0:00:04]} 19. Nxd4 {[%clk 0:00:32.6]} 19... exd4 {[%clk
0:00:04.9]} 20. Qxd4 {[%clk 0:00:32.3]} 20... f6 {[%clk 0:00:04.8]} 21. Bxa6
{[%clk 0:00:20.2]} 21... Rc7 {[%clk 0:00:05.2]} 22. Qd5 {[%clk 0:00:17.9]} 22...
Kf8 {[%clk 0:00:04.1]} 23. Bc4 {[%clk 0:00:16.1]} 1-0

[Event "*** SCC Grand Prix: Titled Tuesday Blitz"]
[Site "Chess.com"]
[Date "2020.07.07"]
[Round "6"]
[White "Gandrade2"]
[Black "Tactictic"]
[Result "0-1"]
[WhiteElo "2120"]
[BlackElo "2293"]
[TimeControl "180+1"]
[EndTime "11:06:01 PDT"]
[Termination "Tactictic won by resignation"]

1. d4 {[%clk 0:03:00.9]} 1... Nf6 {[%clk 0:02:59.7]} 2. c4 {[%clk 0:03:00.3]}
2... e6 {[%clk 0:02:59.3]} 3. Nc3 {[%clk 0:03:00.2]} 3... Bb4 {[%clk 0:02:58.6]}
4. f3 {[%clk 0:03:00.1]} 4... d5 {[%clk 0:02:56.5]} 5. a3 {[%clk 0:02:59.3]}
5... Bxc3+ {[%clk 0:02:56.6]} 6. bxc3 {[%clk 0:03:00.2]} 6... O-O {[%clk
0:02:54.3]} 7. e3 {[%clk 0:02:59]} 7... c5 {[%clk 0:02:53.2]} 8. Bd3 {[%clk
0:02:49.5]} 8... Nc6 {[%clk 0:02:46]} 9. Ne2 {[%clk 0:02:48.5]} 9... cxd4 {[%clk
0:02:35.2]} 10. cxd4 {[%clk 0:02:47.1]} 10... e5 {[%clk 0:02:35.7]} 11. cxd5
{[%clk 0:02:13.9]} 11... Nxd5 {[%clk 0:02:06.8]} 12. e4 {[%clk 0:02:13.9]} 12...
Nf6 {[%clk 0:01:27.6]} 13. d5 {[%clk 0:02:11.2]} 13... Na5 {[%clk 0:01:27.6]}
14. O-O {[%clk 0:02:07.2]} 14... Qb6+ {[%clk 0:01:25.2]} 15. Kh1 {[%clk
0:02:04.4]} 15... Bd7 {[%clk 0:01:17.9]} 16. Bg5 {[%clk 0:02:03.7]} 16... Ne8
{[%clk 0:01:14.4]} 17. Rb1 {[%clk 0:02:03.3]} 17... Qc5 {[%clk 0:01:11.2]} 18.
a4 {[%clk 0:01:34.8]} 18... Nc7 {[%clk 0:00:44.2]} 19. Rc1 {[%clk 0:01:30]}
19... Qd6 {[%clk 0:00:42.9]} 20. Qd2 {[%clk 0:01:11.5]} 20... Nb3 {[%clk
0:00:38.4]} 21. Qa2 {[%clk 0:01:08]} 21... Nxc1 {[%clk 0:00:38.4]} 22. Bxc1
{[%clk 0:01:08.9]} 22... Na6 {[%clk 0:00:37.6]} 23. Ba3 {[%clk 0:01:08.8]} 23...
Nb4 {[%clk 0:00:37.5]} 24. Qb3 {[%clk 0:01:08]} 24... a5 {[%clk 0:00:37.6]} 25.
Rd1 {[%clk 0:00:59]} 25... Rfc8 {[%clk 0:00:37]} 26. Nc3 {[%clk 0:00:58.7]}
26... Qc5 {[%clk 0:00:35.9]} 27. Nb5 {[%clk 0:00:51]} 27... Bxb5 {[%clk
0:00:35.5]} 28. Bxb5 {[%clk 0:00:50.5]} 28... Qc2 {[%clk 0:00:35.4]} 29. Qb1
{[%clk 0:00:41.4]} 29... Rc3 {[%clk 0:00:24.5]} 30. Bxb4 {[%clk 0:00:37.6]}
30... axb4 {[%clk 0:00:22.4]} 31. h3 {[%clk 0:00:37.7]} 31... Rac8 {[%clk
0:00:20.5]} 32. Rf1 {[%clk 0:00:26]} 32... Qxb1 {[%clk 0:00:20.4]} 33. Rxb1
{[%clk 0:00:25.6]} 33... Rc1+ {[%clk 0:00:21.1]} 34. Rxc1 {[%clk 0:00:26.2]}
34... Rxc1+ {[%clk 0:00:21.9]} 35. Kh2 {[%clk 0:00:26]} 35... b3 {[%clk
0:00:22.8]} 36. a5 {[%clk 0:00:26.5]} 36... b2 {[%clk 0:00:23.2]} 37. Bd7 {[%clk
0:00:26.5]} 37... b1=Q {[%clk 0:00:22.9]} 0-1

[Event "*** SCC Grand Prix: Titled Tuesday Blitz"]
[Site "Chess.com"]
[Date "2020.07.07"]
[Round "6"]
[White "ketster"]
[Black "Hippotaner"]
[Result "0-1"]
[WhiteElo "2426"]
[BlackElo "2317"]
[TimeControl "180+1"]
[EndTime "11:06:02 PDT"]
[Termination "Hippotaner won on time"]

1. d4 {[%clk 0:03:00.9]} 1... Nf6 {[%clk 0:02:56.7]} 2. c4 {[%clk 0:02:59.3]}
2... e6 {[%clk 0:02:55.6]} 3. g3 {[%clk 0:02:58.7]} 3... Bb4+ {[%clk 0:02:46.6]}
4. Bd2 {[%clk 0:02:58.4]} 4... a5 {[%clk 0:02:46.6]} 5. Bg2 {[%clk 0:02:58.1]}
5... O-O {[%clk 0:02:46.4]} 6. Nf3 {[%clk 0:02:58.1]} 6... Nc6 {[%clk
0:02:46.2]} 7. O-O {[%clk 0:02:58]} 7... Bxd2 {[%clk 0:02:44.5]} 8. Nbxd2 {[%clk
0:02:55.5]} 8... d6 {[%clk 0:02:45.4]} 9. e4 {[%clk 0:02:52.8]} 9... e5 {[%clk
0:02:45.6]} 10. d5 {[%clk 0:02:53.2]} 10... Ne7 {[%clk 0:02:43.6]} 11. Qc2
{[%clk 0:02:45.7]} 11... Nd7 {[%clk 0:02:43.3]} 12. Ne1 {[%clk 0:02:44.1]} 12...
Nc5 {[%clk 0:02:43.1]} 13. Nd3 {[%clk 0:02:41.9]} 13... b6 {[%clk 0:02:40.1]}
14. b3 {[%clk 0:02:35.6]} 14... Nxd3 {[%clk 0:02:35.9]} 15. Qxd3 {[%clk
0:02:35]} 15... f5 {[%clk 0:02:36.8]} 16. a3 {[%clk 0:02:24.4]} 16... f4 {[%clk
0:02:33.1]} 17. b4 {[%clk 0:02:16.1]} 17... Bd7 {[%clk 0:02:28.9]} 18. Qc3
{[%clk 0:02:02.6]} 18... Qc8 {[%clk 0:02:27.4]} 19. f3 {[%clk 0:01:49.8]} 19...
Bh3 {[%clk 0:02:26.6]} 20. c5 {[%clk 0:01:46.2]} 20... Bxg2 {[%clk 0:02:26.2]}
21. Kxg2 {[%clk 0:01:45.8]} 21... bxc5 {[%clk 0:02:16.4]} 22. bxc5 {[%clk
0:01:45.4]} 22... Qd8 {[%clk 0:02:11.6]} 23. Nc4 {[%clk 0:01:35.6]} 23... Ng6
{[%clk 0:01:59.2]} 24. g4 {[%clk 0:01:12.7]} 24... a4 {[%clk 0:01:41.9]} 25.
cxd6 {[%clk 0:01:01.4]} 25... cxd6 {[%clk 0:01:41.6]} 26. Qb4 {[%clk 0:01:00.5]}
26... Qh4 {[%clk 0:01:10.8]} 27. Nxd6 {[%clk 0:00:52.4]} 27... Rab8 {[%clk
0:01:10.9]} 28. Qe1 {[%clk 0:00:42.7]} 28... Rb2+ {[%clk 0:01:08.6]} 29. Rf2
{[%clk 0:00:39.3]} 29... Rfb8 {[%clk 0:01:09.1]} 30. Rc1 {[%clk 0:00:30.9]}
30... h5 {[%clk 0:01:08.2]} 31. gxh5 {[%clk 0:00:19.2]} 31... Qxh5 {[%clk
0:00:49.6]} 32. Nf5 {[%clk 0:00:17.5]} 32... Nh4+ {[%clk 0:00:41.4]} 33. Nxh4
{[%clk 0:00:17.2]} 33... Qxh4 {[%clk 0:00:42.3]} 34. Rcc2 {[%clk 0:00:09.7]}
34... Rxc2 {[%clk 0:00:40.7]} 0-1

[Event "*** SCC Grand Prix: Titled Tuesday Blitz"]
[Site "Chess.com"]
[Date "2020.07.07"]
[Round "6"]
[White "ValentinDragnev"]
[Black "Carnivoras"]
[Result "1-0"]
[WhiteElo "2760"]
[BlackElo "2599"]
[TimeControl "180+1"]
[EndTime "11:06:06 PDT"]
[Termination "ValentinDragnev won by resignation"]

1. d4 {[%clk 0:03:00.9]} 1... d5 {[%clk 0:03:00.5]} 2. c4 {[%clk 0:03:00.7]}
2... c6 {[%clk 0:03:00.8]} 3. Nf3 {[%clk 0:03:01.2]} 3... e6 {[%clk 0:03:00.3]}
4. g3 {[%clk 0:03:01.7]} 4... dxc4 {[%clk 0:02:58.1]} 5. Bg2 {[%clk 0:03:01.4]}
5... b5 {[%clk 0:02:58.7]} 6. O-O {[%clk 0:03:01.6]} 6... Bb7 {[%clk 0:02:59.3]}
7. a4 {[%clk 0:03:01.3]} 7... a6 {[%clk 0:02:58.4]} 8. b3 {[%clk 0:03:01]} 8...
cxb3 {[%clk 0:02:58.4]} 9. Qxb3 {[%clk 0:03:01.1]} 9... Nf6 {[%clk 0:02:59]} 10.
Nc3 {[%clk 0:02:57]} 10... Be7 {[%clk 0:02:57.1]} 11. Ne5 {[%clk 0:02:57]} 11...
Qxd4 {[%clk 0:02:47.8]} 12. Bf4 {[%clk 0:02:54.3]} 12... b4 {[%clk 0:02:35.2]}
13. Na2 {[%clk 0:02:42.2]} 13... Nd5 {[%clk 0:02:11.7]} 14. Rfd1 {[%clk
0:02:31.4]} 14... Qa7 {[%clk 0:02:02.1]} 15. Bc1 {[%clk 0:02:08.6]} 15... a5
{[%clk 0:01:27.2]} 16. e4 {[%clk 0:02:08]} 16... Nc7 {[%clk 0:01:27.4]} 17. Be3
{[%clk 0:01:59.6]} 17... c5 {[%clk 0:01:27.6]} 18. Nc1 {[%clk 0:01:47]} 18...
O-O {[%clk 0:01:25.2]} 19. Ncd3 {[%clk 0:01:47]} 19... f6 {[%clk 0:00:35]} 20.
Nc4 {[%clk 0:01:11]} 20... Nc6 {[%clk 0:00:35]} 21. Rac1 {[%clk 0:01:10.6]}
21... Rfd8 {[%clk 0:00:33.1]} 22. Nf4 {[%clk 0:01:04.7]} 22... Kh8 {[%clk
0:00:31.4]} 23. h4 {[%clk 0:01:03.1]} 23... e5 {[%clk 0:00:30.2]} 24. Nd5 {[%clk
0:00:55.8]} 24... Nxd5 {[%clk 0:00:28.7]} 25. exd5 {[%clk 0:00:56.7]} 25... Nd4
{[%clk 0:00:29.2]} 26. Bxd4 {[%clk 0:00:51.3]} 26... cxd4 {[%clk 0:00:29.6]} 27.
h5 {[%clk 0:00:41.6]} 27... h6 {[%clk 0:00:26.6]} 28. Nd2 {[%clk 0:00:38]} 28...
Rac8 {[%clk 0:00:19.6]} 29. Rxc8 {[%clk 0:00:38.2]} 29... Rxc8 {[%clk
0:00:20.5]} 30. Qd3 {[%clk 0:00:38.8]} 30... Qc5 {[%clk 0:00:19.1]} 31. Qg6
{[%clk 0:00:38.5]} 31... Bxd5 {[%clk 0:00:18.2]} 32. Ne4 {[%clk 0:00:35.9]}
32... Qc2 {[%clk 0:00:18.1]} 33. Re1 {[%clk 0:00:32.7]} 33... b3 {[%clk
0:00:18.5]} 34. Bh3 {[%clk 0:00:32.5]} 34... b2 {[%clk 0:00:14.2]} 35. Bf5
{[%clk 0:00:32.4]} 35... Bg8 {[%clk 0:00:14.2]} 36. Nd6 {[%clk 0:00:29.4]} 36...
Qc1 {[%clk 0:00:11.4]} 37. Nf7+ {[%clk 0:00:28.8]} 1-0

[Event "*** SCC Grand Prix: Titled Tuesday Blitz"]
[Site "Chess.com"]
[Date "2020.07.07"]
[Round "6"]
[White "Bacyanide"]
[Black "PowerThinking2650"]
[Result "1-0"]
[WhiteElo "2447"]
[BlackElo "2314"]
[TimeControl "180+1"]
[EndTime "11:06:06 PDT"]
[Termination "Bacyanide won by resignation"]

1. d4 {[%clk 0:03:00.9]} 1... Nf6 {[%clk 0:02:58.1]} 2. Nf3 {[%clk 0:03:00.5]}
2... g6 {[%clk 0:02:55.9]} 3. c4 {[%clk 0:02:59.7]} 3... Bg7 {[%clk 0:02:55.9]}
4. Nc3 {[%clk 0:03:00.1]} 4... O-O {[%clk 0:02:56.4]} 5. e4 {[%clk 0:03:00.3]}
5... d6 {[%clk 0:02:57]} 6. Be2 {[%clk 0:03:00.6]} 6... e5 {[%clk 0:02:56.9]} 7.
O-O {[%clk 0:03:01.2]} 7... Nc6 {[%clk 0:02:56.9]} 8. d5 {[%clk 0:03:01.6]} 8...
Ne7 {[%clk 0:02:57.4]} 9. Ne1 {[%clk 0:03:01.9]} 9... Nd7 {[%clk 0:02:57.9]} 10.
Bd2 {[%clk 0:03:02.1]} 10... f5 {[%clk 0:02:57.6]} 11. Nd3 {[%clk 0:02:59.1]}
11... Nf6 {[%clk 0:02:55.7]} 12. f3 {[%clk 0:02:58.3]} 12... f4 {[%clk 0:02:51]}
13. c5 {[%clk 0:02:57]} 13... g5 {[%clk 0:02:50.3]} 14. Rc1 {[%clk 0:02:56.3]}
14... Ng6 {[%clk 0:02:48.5]} 15. Nb5 {[%clk 0:02:55.7]} 15... a6 {[%clk
0:02:43.5]} 16. cxd6 {[%clk 0:02:50.6]} 16... axb5 {[%clk 0:02:41.2]} 17. dxc7
{[%clk 0:02:50.7]} 17... Qe8 {[%clk 0:02:27.5]} 18. d6 {[%clk 0:02:25.8]} 18...
g4 {[%clk 0:02:24.2]} 19. fxg4 {[%clk 0:02:19.5]} 19... Nxe4 {[%clk 0:02:17.5]}
20. Bb4 {[%clk 0:02:19]} 20... Bd7 {[%clk 0:02:00]} 21. Bf3 {[%clk 0:02:05.9]}
21... Ng5 {[%clk 0:01:51.9]} 22. Bxb7 {[%clk 0:02:03.5]} 22... e4 {[%clk
0:01:48.9]} 23. Bxa8 {[%clk 0:01:49.5]} 23... Qxa8 {[%clk 0:01:45.1]} 24. Nc5
{[%clk 0:01:48.2]} 24... Bc6 {[%clk 0:01:38.5]} 25. d7 {[%clk 0:01:42.5]} 25...
e3 {[%clk 0:01:01.3]} 26. d8=Q {[%clk 0:01:33]} 26... Bxg2 {[%clk 0:01:00.8]}
27. Qxa8 {[%clk 0:01:21.3]} 27... Bxa8 {[%clk 0:01:00]} 28. h4 {[%clk
0:01:10.4]} 28... Nxh4 {[%clk 0:00:43.8]} 29. Nd7 {[%clk 0:00:51.2]} 29... f3
{[%clk 0:00:16.3]} 30. Bxf8 {[%clk 0:00:41.1]} 30... f2+ {[%clk 0:00:09.6]} 31.
Rxf2 {[%clk 0:00:40]} 31... Nh3+ {[%clk 0:00:09.6]} 32. Kh2 {[%clk 0:00:39.7]}
32... Nxf2 {[%clk 0:00:09.6]} 33. c8=Q {[%clk 0:00:38.4]} 33... Nf3+ {[%clk
0:00:03.8]} 34. Qxf3 {[%clk 0:00:37.6]} 1-0

[Event "*** SCC Grand Prix: Titled Tuesday Blitz"]
[Site "Chess.com"]
[Date "2020.07.07"]
[Round "6"]
[White "DortmundCity"]
[Black "OK97"]
[Result "0-1"]
[WhiteElo "2608"]
[BlackElo "2765"]
[TimeControl "180+1"]
[EndTime "11:06:08 PDT"]
[Termination "OK97 won on time"]

1. e4 {[%clk 0:03:00.8]} 1... g6 {[%clk 0:02:59.9]} 2. d4 {[%clk 0:03:00.4]}
2... Bg7 {[%clk 0:02:58.5]} 3. Nc3 {[%clk 0:03:00.7]} 3... d6 {[%clk 0:02:58.8]}
4. f4 {[%clk 0:03:00.2]} 4... Nf6 {[%clk 0:02:59]} 5. Nf3 {[%clk 0:02:54.2]}
5... O-O {[%clk 0:02:59.2]} 6. Be3 {[%clk 0:02:52.5]} 6... b6 {[%clk 0:02:58.8]}
7. e5 {[%clk 0:02:44.6]} 7... Ng4 {[%clk 0:02:52.8]} 8. Bg1 {[%clk 0:02:43.7]}
8... c5 {[%clk 0:02:48]} 9. dxc5 {[%clk 0:02:39.9]} 9... bxc5 {[%clk 0:02:42.4]}
10. Qd5 {[%clk 0:02:37.7]} 10... Qb6 {[%clk 0:02:39.3]} 11. Qb3 {[%clk
0:02:24.2]} 11... Nc6 {[%clk 0:02:20.8]} 12. O-O-O {[%clk 0:02:13.8]} 12... dxe5
{[%clk 0:02:08.5]} 13. fxe5 {[%clk 0:02:04.7]} 13... Ngxe5 {[%clk 0:02:04.9]}
14. Nd5 {[%clk 0:02:00.4]} 14... Qxb3 {[%clk 0:02:01.3]} 15. axb3 {[%clk
0:01:57.7]} 15... Bg4 {[%clk 0:01:31.6]} 16. Be2 {[%clk 0:01:48.5]} 16... Bxf3
{[%clk 0:01:22.7]} 17. gxf3 {[%clk 0:01:46.6]} 17... e6 {[%clk 0:01:13.7]} 18.
Nc7 {[%clk 0:01:25.4]} 18... Rac8 {[%clk 0:01:05.2]} 19. Na6 {[%clk 0:01:21.8]}
19... Nd4 {[%clk 0:01:01.8]} 20. Bxd4 {[%clk 0:01:13.6]} 20... cxd4 {[%clk
0:01:02.7]} 21. Kb1 {[%clk 0:01:04.8]} 21... Rfd8 {[%clk 0:01:02.6]} 22. Nb4
{[%clk 0:01:03.9]} 22... a5 {[%clk 0:01:00.6]} 23. Nd3 {[%clk 0:01:03.5]} 23...
Nc6 {[%clk 0:01:00.7]} 24. f4 {[%clk 0:00:58.6]} 24... Bh6 {[%clk 0:00:54.3]}
25. Rhf1 {[%clk 0:00:53.3]} 25... Rc7 {[%clk 0:00:48.7]} 26. c3 {[%clk
0:00:44.1]} 26... dxc3 {[%clk 0:00:46.1]} 27. bxc3 {[%clk 0:00:44.3]} 27... Rb8
{[%clk 0:00:39]} 28. Ka2 {[%clk 0:00:27.2]} 28... Ne7 {[%clk 0:00:28.1]} 29. c4
{[%clk 0:00:20.1]} 29... a4 {[%clk 0:00:28.3]} 30. bxa4 {[%clk 0:00:12.4]} 30...
Rxc4 {[%clk 0:00:26.5]} 31. Nb2 {[%clk 0:00:01.9]} 31... Rc2 {[%clk 0:00:25.3]}
0-1